[Event "44th Chess Olympiad Open 2022"]
[Site "Chennai"]
[Date "2022.08.07"]
[Round "9.24"]
[White "Pechac, Jergus"]
[Black "Matamoros Franco, Carlos S."]
[Result "1-0"]
[WhiteElo "2594"]
[BlackElo "2459"]
[Annotator "TA"]
[PlyCount "91"]
[EventDate "2022.??.??"]
[TimeControl "60"]

{[%evp 21,91,11,12,-8,-6,-12,0,0,0,0,0,0,0,-16,0,-66,-38,-39,-6,-4,39,41,44,64,
50,47,63,48,43,62,73,51,85,82,77,77,85,89,187,198,209,209,209,208,206,204,162,
197,188,175,188,185,165,165,232,228,208,197,643,636,618,616,1402,1361,1275,
1287,5173,5114,1309,873,29980,29979]} 1. e4 {[%emt 0:00:27]} d6 {[%emt 0:01:45]
} 2. Nc3 {[%emt 0:01:20]} Nf6 {[%emt 0:02:28]} 3. Nf3 {[%emt 0:00:59]} e5 {
[%emt 0:03:42]} 4. d4 {[%emt 0:00:12]} Nbd7 {[%emt 0:00:08]} 5. Bc4 {[%emt 0:
00:00]} Be7 {[%emt 0:00:16]} 6. a4 {[%emt 0:00:10]} O-O {[%emt 0:00:32]} 7. O-O
{[%emt 0:00:17]} c6 {[%emt 0:00:37]} 8. Re1 {[%emt 0:00:49]} b6 {[%emt 0:00:45]
} 9. d5 {[%emt 0:03:09]} cxd5 {[%emt 0:03:35]} 10. Nxd5 {[%emt 0:05:30]} Bb7 {
[%emt 0:00:42]} 11. b3 {[%emt 0:06:10]} Rc8 {[%emt 0:01:54]} 12. a5 {[%emt 0:
00:00] C41: Philidor Defence.} Nxd5 {[%emt 0:11:41]} 13. exd5 {[%emt 0:05:14]}
bxa5 {[%emt 0:19:08]} 14. Bd2 {[%emt 0:01:42] The position is equal.} Nb6 {
[%emt 0:03:23][%csl Yc4,Yd5]} 15. Bxa5 {[%emt 0:00:11]} Qd7 {[%emt 0:00:19]}
16. Bxb6 {[%emt 0:01:57]} axb6 {[%emt 0:00:04]} 17. Qd3 {[%emt 0:00:37] [#]}
Qc7 $146 {[%emt 0:00:44]} ({Predecessor:} 17... Rc5 18. b4 Rc7 19. h3 Qc8 20.
Bb3 Rc3 21. Qe2 Qd7 22. Ra7 Rb8 23. Nd2 Bd8 {1-0 (41) Lanc,A (2399)-Hrabusa,M 
(2332) Slovakia 2010}) 18. Re2 {[%emt 0:03:26]} ({Better is} 18. Ra2 $11) 18...
Ra8 {[%emt 0:07:39]} (18... f5 $5 {[%cal Re5e4]} 19. Rae1 Rf7 $15) 19. Rae1 {
[%emt 0:00:34][%cal Yf3d4]} Qc5 {[%emt 0:03:11]} 20. Nd4 {[%emt 0:02:15][%cal
Yd4c6]} exd4 {[%emt 0:30:24]} (20... Bxd5 $2 21. Nf5 Bxc4 22. Nxe7+ Kh8 23.
bxc4 $18) (20... Ra7 {seems wilder.} 21. g3 g6 22. c3 Rc8) 21. Rxe7 {[%emt 0:
00:00]} Bxd5 {[%emt 0:00:13]} 22. Bxd5 {[%emt 0:03:29]} Qxd5 {[%emt 0:00:20]}
23. R7e4 {[%emt 0:00:19][%cal Ye7e4,Ye4d4,Yd4d6,Yd6d8]} Qa5 {[%emt 0:00:00]}
24. Qxd4 {[%emt 0:01:56]} Qc5 {[%emt 0:00:04]} 25. Qd3 $40 {[%emt 0:00:00]
White is up to no good.} b5 {[%emt 0:01:18]} 26. h3 {[%emt 0:00:00]} Ra2 {
[%emt 0:02:05]} 27. R1e2 {[%emt 0:00:21] Black is now going downhill.} g6 {
[%emt 0:01:33]} 28. Rd4 {[%emt 0:00:46]} Rc8 {[%emt 0:00:35][%cal Ra2c2]} 29.
Rxd6 {[%emt 0:00:53]} Rxc2 {[%emt 0:00:35]} (29... Kg7 $16) 30. Rxc2 $18 {
[%emt 0:00:10]} Qxc2 $16 {[%emt 0:00:04] Endgame KQR-KQR} 31. Rd8+ {[%emt 0:00:
08]} Kg7 {[%emt 0:00:04]} 32. Qd4+ {[%emt 0:00:11]} Kh6 {[%emt 0:00:00]} 33.
Qf4+ {[%emt 0:00:29]} Kg7 {[%emt 0:00:09]} 34. Qe5+ {[%emt 0:00:06]} Kh6 {
[%emt 0:00:24] [#]} 35. Rxc8 {[%emt 0:01:32]} ({Don't play} 35. Qf4+ $6 Kg7 36.
Qe5+ Kh6 37. Qe3+ (37. Qf4+ Kg7 $16) 37... Kg7 38. Qd4+ Kh6 $16) 35... Qxc8 {
[%emt 0:00:03]} 36. Qxb5 $18 {[%emt 0:00:10] KQ-KQ} Qc1+ {[%emt 0:01:23]} 37.
Qf1 {[%emt 0:00:10]} Qb2 {[%emt 0:00:51]} (37... Qc3 $142) 38. Qc4 {[%emt 0:00:
32]} Kg7 {[%emt 0:01:06]} 39. b4 {[%emt 0:00:20][%cal Yb3b4,Yb4b5,Yb5b6] Black
must now prevent b5.} g5 $2 {[%emt 0:00:34]} (39... Qa1+ 40. Kh2 Qe5+ 41. g3
Qd6) 40. b5 {[%emt 0:00:52]} Qa1+ {[%emt 0:00:28]} 41. Kh2 {[%emt 0:31:08]}
Qe5+ {[%emt 0:01:21]} 42. g3 {[%emt 0:00:00]} h5 {[%emt 0:00:00]} 43. Kg2 {
[%emt 0:00:00] [#] Hoping for b6.} Qf5 {[%emt 0:01:36]} 44. b6 {[%emt 0:00:00]}
Qd7 {[%emt 0:01:48] Prevents Qd4+.} 45. Qe4 {[%emt 0:00:00] b7 would kill now.}
f5 {[%emt 0:06:09]} 46. Qa8 {[%emt 0:00:00] Weighted Error Value: White=0.10 
(very precise) /Black=0.47} 1-0

[Event "44th Chess Olympiad Open 2022"]
[Site "Chennai"]
[Date "2022.08.07"]
[Round "9.24"]
[White "Repka, Christopher"]
[Black "Bastidas Rodriguez, Emilio"]
[Result "1/2-1/2"]
[WhiteElo "2516"]
[BlackElo "2351"]
[Annotator "TA"]
[PlyCount "88"]
[EventDate "2022.??.??"]
[TimeControl "60"]

{[%evp 9,88,19,24,16,16,12,12,12,23,23,29,29,22,15,15,18,10,8,25,23,27,21,19,5,
10,20,0,0,18,-54,-48,-118,-85,-95,-86,-173,-172,-182,-143,-183,-161,-120,-27,
-25,-24,-41,-27,-41,-19,-25,-28,-87,-75,-82,-75,-133,-127,-126,-130,-158,-82,
-54,-18,-225,-184,-202,-196,-183,-137,-139,-106,-157,-47,-44,-47,-41,-45,-40,
-45,-102,-8]} 1. g3 {[%emt 0:00:04]} d5 {[%emt 0:00:37]} 2. Nf3 {[%emt 0:00:05]
} c6 {[%emt 0:00:15]} 3. Bg2 {[%emt 0:00:03]} Nf6 {[%emt 0:00:08]} 4. O-O {
[%emt 0:00:14]} Bg4 {[%emt 0:00:09]} 5. h3 {[%emt 0:00:16]} Bh5 {[%emt 0:00:07]
} 6. d4 {[%emt 0:00:05] A07: Réti Opening: New York and Capablanca Systems.}
Nbd7 {[%emt 0:02:18]} 7. c4 {[%emt 0:00:05]} e6 {[%emt 0:00:15]} 8. cxd5 {
[%emt 0:01:09] The position is equal.} exd5 {[%emt 0:02:16]} 9. Nh4 {[%emt 0:
00:00] 9.Ne5 is setting a new trend.} Bg6 {[%emt 0:03:04]} 10. Nc3 {[%emt 0:00:
00]} Be7 {[%emt 0:00:44]} 11. Nxg6 {[%emt 0:00:11]} hxg6 {[%emt 0:00:03]} 12.
Qd3 {[%emt 0:00:05]} O-O {[%emt 0:00:31]} 13. Bf3 {[%emt 0:00:02]} Bd6 {
[%emt 0:04:16]} 14. h4 {[%emt 0:00:09]} Re8 {[%emt 0:00:36]} 15. Kg2 {[%emt 0:
00:00]} Qe7 {[%emt 0:00:56] [#]} 16. Rh1 $146 {[%emt 0:00:51]} ({Predecessor:} 
16. Bd2 Ne4 17. Rh1 Ndf6 18. e3 Qe6 19. Rae1 Rad8 20. Bc1 Bb8 21. Ne2 Ng4 22.
Ref1 {1-0 (50) Banusz,T (2628)-Petrosyan,T (2448) Chess.com INT 2020}) 16...
Ne4 {[%emt 0:00:33]} 17. h5 {[%emt 0:02:26]} g5 {[%emt 0:04:25]} 18. h6 {
[%emt 0:11:40]} g6 {[%emt 0:00:38]} 19. h7+ {[%emt 0:10:53]} ({White should
play} 19. Bxe4 $11 dxe4 20. Qd1) 19... Kh8 $15 {[%emt 0:02:41]} 20. Qe3 {
[%emt 0:04:37]} (20. Bxe4 $15 dxe4 21. Qc2) 20... f6 {[%emt 0:03:28]} 21. Bxe4
{[%emt 0:02:27]} dxe4 {[%emt 0:00:37]} 22. f3 {[%emt 0:00:08]} (22. Qd2 $17 {
is a better defense.}) 22... exf3+ $19 {[%emt 0:08:36]} 23. Qxf3 {[%emt 0:00:
00]} Bb4 {[%emt 0:03:53] White must now prevent ...Bxc3.} 24. e3 {[%emt 0:00:
00]} Bxc3 {[%emt 0:04:55]} 25. bxc3 {[%emt 0:00:05]} Qe4 {[%emt 0:00:11]} (
25... Qe6 $17 {aiming for ...Re7.} 26. Kg1 Qc4) 26. Qxe4 $11 {[%emt 0:00:39]}
Rxe4 {[%emt 0:00:05]} 27. Rb1 {[%emt 0:00:03]} b6 {[%emt 0:00:25]} 28. Kf3 {
[%emt 0:07:32]} Rae8 {[%emt 0:04:42]} 29. g4 {[%emt 0:00:49]} R4e7 {[%emt 0:00:
00]} 30. Rb4 {[%emt 0:13:55]} (30. a4 $11 {keeps the balance.}) 30... Rxh7 {
[%emt 0:06:30]} (30... f5 {is more complex.} 31. gxf5 gxf5 32. Rh6 g4+) 31.
Rxh7+ {[%emt 0:00:04]} Kxh7 $17 {[%emt 0:00:12] Endgame KRB-KRN} 32. Ra4 {
[%emt 0:01:03]} (32. e4 $142) 32... a5 {[%emt 0:03:28]} 33. c4 {[%emt 0:00:00]
[%cal Yc4c5]} c5 {[%emt 0:05:11]} 34. Ba3 {[%emt 0:01:44]} f5 {[%emt 0:00:00]}
({Black should try} 34... Rc8 35. dxc5 Nxc5 36. Bxc5 Rxc5) 35. dxc5 {[%emt 0:
05:38]} bxc5 {[%emt 0:01:46] Strongly threatening ...Kh6.} 36. Bb2 $2 {[%emt 0:
14:39]} ({But not} 36. gxf5 gxf5 37. Rxa5 Ne5+ 38. Kf2 Ng4+ 39. Kg1 Rxe3 40.
Bxc5 Re4 $19) (36. Rxa5 $11 {and White stays safe.} Ne5+ 37. Ke2) 36... Nb6 $19
{[%emt 0:13:28]} 37. Rxa5 {[%emt 0:00:14]} Nxc4 {[%emt 0:03:08]} 38. Ra7+ {
[%emt 0:00:03]} Kg8 {[%emt 0:00:14]} 39. Bf6 {[%emt 0:00:05]} Rxe3+ {[%emt 0:
02:34]} 40. Kf2 {[%emt 0:00:08] [#]} Re4 {[%emt 0:05:18]} (40... f4 $1 $17 41.
Re7 Rxe7 42. Bxe7 Nd2) 41. gxf5 $1 $15 {[%emt 0:30:16]} Rf4+ {[%emt 0:00:00]}
42. Ke2 $1 {[%emt 0:00:18]} Rxf5 {[%emt 0:04:22]} 43. Bc3 {[%emt 0:00:00]} Kf8
{[%emt 0:00:47]} 44. Rc7 {[%emt 0:05:52] [#]} (44. Rg7 $15) 44... g4 {[%emt 0:
00:00] Weighted Error Value: White=0.22 (precise) /Black=0.20 (precise)} (44...
Nd6 $1 $17 45. Rg7 Ne4) 1/2-1/2

[Event "44th Chess Olympiad Open 2022"]
[Site "Chennai"]
[Date "2022.08.07"]
[Round "9.24"]
[White "Mieles Palau, Daniel"]
[Black "Gazik, Viktor"]
[Result "0-1"]
[WhiteElo "2364"]
[BlackElo "2544"]
[Annotator "TA"]
[PlyCount "106"]
[EventDate "2022.??.??"]
[TimeControl "60"]

{[%evp 12,106,44,37,41,32,39,38,36,39,37,24,19,14,12,6,21,0,0,0,0,0,0,-20,-14,
-35,9,-43,0,0,0,-33,0,0,-4,-88,0,0,0,0,0,0,0,0,0,0,0,0,39,0,0,-31,-27,-32,-15,
-100,-88,-303,-62,-68,-59,-97,-108,-127,0,-39,0,-135,-158,-137,-140,-164,-179,
-369,-256,-256,-249,-247,-243,-241,-241,-235,-234,-291,-278,-245,-71,-71,-77,
-83,-89,-88,-81,-12843,-12843,-12844,0]} 1. e4 {[%emt 0:00:28]} c5 {[%emt 0:00:
00]} 2. Nf3 {[%emt 0:00:05]} e6 {[%emt 0:03:06]} 3. d4 {[%emt 0:00:36]} cxd4 {
[%emt 0:00:05]} 4. Nxd4 {[%emt 0:00:04]} Nf6 {[%emt 0:00:05]} 5. Nc3 {[%emt 0:
00:00]} Nc6 {[%emt 0:00:07]} 6. Ndb5 {[%emt 0:00:04]} Bc5 {[%emt 0:07:42]} 7.
Bf4 {[%emt 0:13:55] 7.Bf4 is better than 7.Nd6+.} O-O {[%emt 0:04:37] B45:
Sicilian Four Knights.} 8. Bc7 {[%emt 0:04:24]} Qe7 {[%emt 0:05:01] Threatens
to win with ...d5.} 9. Bd6 $1 {[%emt 0:00:17]} Bxd6 {[%emt 0:00:07] White is
slightly better.} 10. Qxd6 {[%emt 0:00:05]} Qd8 {[%emt 0:06:55]} 11. Be2 {
[%emt 0:22:16]} a6 {[%emt 0:23:00]} 12. Nd4 {[%emt 0:05:48]} Qb6 {[%emt 0:00:
00]} 13. Nb3 {[%emt 0:01:26]} Rd8 {[%emt 0:04:10] [#]} 14. Rd1 $146 {[%emt 0:
00:00]} ({Predecessor:} 14. O-O Ne8 15. Qf4 d6 16. Rad1 Qc7 17. Rd3 b5 18. a4
b4 19. Nb1 Ne5 20. Rd2 {0-1 (49) Forgues,V (2012)-Pavlidou,E (2139) Vung Tau
2008}) 14... Ne8 {[%emt 0:06:07]} 15. Qd2 {[%emt 0:03:08]} Qc7 {[%emt 0:01:08]}
16. O-O {[%emt 0:07:13]} b5 {[%emt 0:03:13]} 17. Qe3 {[%emt 0:07:56]} d6 {
[%emt 0:04:02]} 18. f4 {[%emt 0:02:02]} Bb7 {[%emt 0:03:30]} (18... Rb8 $5 {
[%cal Rb5b4]}) 19. Rd2 {[%emt 0:00:27]} (19. a3 $11) 19... Rac8 {[%emt 0:02:04]
} (19... b4 $5 {[%cal Rb4c3]} 20. Nd1 Nf6 $11) 20. Rfd1 {[%emt 0:01:43]} Na5 {
[%emt 0:02:10]} 21. f5 {[%emt 0:04:29]} b4 {[%emt 0:07:22]} 22. Na4 {[%emt 0:
00:00]} exf5 {[%emt 0:02:22]} 23. Nb6 {[%emt 0:01:16]} (23. exf5 $11 Qc6 24.
Bh5 (24. Rd5 $2 Nxb3 25. axb3 Nf6 $19)) 23... f4 {[%emt 0:01:31]} (23... Nxb3
$17 24. axb3 Rb8 25. exf5 Bxg2 $1) 24. Qf2 $11 {[%emt 0:00:07]} Nxb3 {[%emt 0:
00:00]} 25. cxb3 {[%emt 0:01:33]} Rb8 {[%emt 0:02:07]} 26. Nd5 {[%emt 0:05:36]}
Bxd5 {[%emt 0:00:04]} 27. Rxd5 {[%emt 0:00:01]} Nf6 {[%emt 0:03:18][%csl Yd5,
Ye4]} 28. R5d4 {[%emt 0:00:02]} Re8 {[%emt 0:03:12]} 29. Qxf4 {[%emt 0:02:03]}
Qa5 {[%emt 0:00:39]} 30. Bf3 {[%emt 0:03:13]} Qxa2 {[%emt 0:00:32]} 31. Rxd6 {
[%emt 0:00:24]} (31. Qxd6 $5 {[%cal Re4e5]} Rb5 32. Be2 $11) 31... Qxb2 {
[%emt 0:00:14]} 32. Rxa6 {[%emt 0:01:11]} Rb5 {[%emt 0:01:21]} (32... Qxb3 $2
33. e5 $18) 33. Qc7 {[%emt 0:06:21]} (33. Qe3 $11 {remains equal.}) 33... Qxb3
$17 {[%emt 0:00:19]} 34. Rd8 $2 {[%emt 0:00:05] [#]} (34. h3 $17) 34... Rbe5 $3
{[%emt 0:00:44]} 35. Raa8 $15 {[%emt 0:00:14] Qxe5 is the strong threat.} Qb1+
{[%emt 0:00:27]} 36. Kf2 {[%emt 0:00:14] And now Qxe5 would win.} Qb2+ {
[%emt 0:00:01]} ({Don't play} 36... Nxe4+ $6 37. Bxe4 Rf5+ 38. Bxf5 Qxf5+ 39.
Kg1 Qb1+ 40. Kf2 Qf5+ 41. Kg3 Qg5+ 42. Kh3 Qh6+ 43. Kg4 Qe6+ 44. Kh5 Qh6+ 45.
Kg4 Qe6+ 46. Kh4 Qh6+ 47. Kg4 $11) 37. Kf1 {[%emt 0:02:04]} Qb1+ $40 {[%emt 0:
00:54] Black is up to no good.} (37... h6 $1 $17 {Hoping for ...Kh7.} 38. Ra7
Qb1+ 39. Rd1 (39. Bd1 $2 Kh7 $19) 39... Qb3) 38. Kf2 {[%emt 0:00:00] aiming
for Qxe5.} Qb2+ {[%emt 0:00:04]} ({Black should try} 38... R5e6 $15 39. Rxe8+
Nxe8) 39. Kf1 $1 $17 {[%emt 0:00:01]} h6 $1 {[%emt 0:00:59] Black is more
active.} 40. Rxe8+ {[%emt 0:00:32]} Rxe8 {[%emt 0:00:31] Chess con chili.} 41.
Rxe8+ {[%emt 0:11:53]} Nxe8 {[%emt 0:00:53] Endgame KQB-KQN} 42. Qe7 {[%emt 0:
00:02]} (42. Qb8 {was necessary.} Kf8 43. Be2) 42... Qc1+ {[%emt 0:03:47]} 43.
Ke2 {[%emt 0:03:42]} Qc2+ {[%emt 0:06:00]} 44. Ke3 {[%emt 0:06:59]} Qc3+ {
[%emt 0:00:01]} 45. Ke2 {[%emt 0:01:29]} Qc4+ {[%emt 0:00:00]} ({Don't blunder
} 45... Nf6 $2 46. Qd8+ Kh7 47. Qd3) 46. Ke3 {[%emt 0:00:00] [#]} Nc7 {[%emt 0:
05:01]} 47. Qd8+ {[%emt 0:01:40]} Kh7 {[%emt 0:00:04]} 48. e5 {[%emt 0:00:03]}
Ne6 $2 {[%emt 0:12:10]} (48... Qc1+ $19 {is more deadly.} 49. Qd2 Qa3+ 50. Ke2
g6) 49. Qd3+ {[%emt 0:07:31]} Qxd3+ 50. Kxd3 {[%emt 0:00:03]} Kg6 {[%emt 0:00:
02]} 51. Kc4 b3 {[%emt 0:00:03] White must now prevent ...Kf5.} 52. Kxb3 $2 {
[%emt 0:00:01] [#]} (52. Kc3 $17) 52... Nd4+ $1 $19 53. Kc4 {[%emt 0:00:02]}
Ne6 $2 {[%emt 0:00:02] Weighted Error Value: White=0.29 (precise) /Black=0.27 
(precise) . Loss on time!?} (53... Nxf3 $19 54. gxf3 Kf5) 0-1

[Event "44th Chess Olympiad Open 2022"]
[Site "Chennai"]
[Date "2022.08.07"]
[Round "9.24"]
[White "Esmeraldas Huachi, Anderson"]
[Black "Ftacnik, Lubomir"]
[Result "0-1"]
[WhiteElo "2071"]
[BlackElo "2483"]
[Annotator "RC"]
[PlyCount "42"]
[EventDate "2022.??.??"]
[TimeControl "60"]

1. d4 {[%emt 0:00:03]} Nf6 {[%emt 0:00:07]} 2. c4 {[%emt 0:00:06]} g6 {[%emt 0:
00:00]} 3. Nc3 {[%emt 0:00:05]} d5 {[%emt 0:00:08]} 4. cxd5 {[%emt 0:00:05]}
Nxd5 {[%emt 0:00:08]} 5. e4 {[%emt 0:00:03]} Nxc3 {[%emt 0:00:11]} 6. bxc3 {
[%emt 0:00:06]} Bg7 {[%emt 0:00:08]} 7. Bc4 {[%emt 0:00:07]} O-O {[%emt 0:00:
00]} 8. Ne2 {[%emt 0:00:04]} Nc6 {[%emt 0:00:25]} 9. O-O {[%emt 0:02:28]} b6 {
[%emt 0:01:02]} 10. Bd5 {[%emt 0:09:19]} Qd7 {[%emt 0:10:56]} 11. Ba3 {[%emt 0:
00:00]} Bb7 {[%emt 0:05:29]} 12. Rc1 {[%emt 0:03:30]} Rfd8 {[%emt 0:02:53]} 13.
f3 {[%emt 0:16:50]} e6 {[%emt 0:03:48]} 14. Bxc6 {[%emt 0:00:06]} Bxc6 {
[%emt 0:01:48]} 15. Qd2 {[%emt 0:03:09]} Bb7 {[%emt 0:05:05]} 16. Rfd1 {
[%emt 0:08:21]} c5 {[%emt 0:01:53]} 17. Qb2 {[%emt 0:04:59]} Ba6 {[%emt 0:00:
00]} 18. e5 {[%emt 0:18:44]} Qa4 {[%emt 0:02:56]} 19. Nf4 {[%emt 0:07:26]} Bxe5
{[%emt 0:01:57]} 20. Nd3 {[%emt 0:05:07]} Bg7 {[%emt 0:01:15]} 21. Ne5 {
[%emt 0:00:09]} Bxe5 {[%emt 0:00:11]} 0-1

[Event "44th Chess Olympiad Open 2022"]
[Site "Chennai"]
[Date "2022.08.07"]
[Round "9.25"]
[White "Bogner, Sebastian"]
[Black "Galego, Luis"]
[Result "1-0"]
[WhiteElo "2545"]
[BlackElo "2462"]
[Annotator "TA"]
[PlyCount "100"]
[EventDate "2022.??.??"]
[TimeControl "60"]

{[%evp 16,100,34,48,51,45,66,62,64,61,82,78,85,95,77,81,79,45,54,42,40,33,78,
80,95,116,111,47,74,23,34,16,28,10,0,0,27,20,27,15,46,9,19,9,23,0,72,29,110,0,
73,31,36,0,0,0,0,0,0,0,0,0,0,0,174,185,191,189,699,699,689,666,629,591,573,570,
585,626,637,602,574,577,575,552,756,731,902]} 1. d4 {[%emt 0:00:04]} Nf6 {
[%emt 0:00:28]} 2. c4 {[%emt 0:00:13]} e6 {[%emt 0:01:51]} 3. Nf3 {[%emt 0:00:
00]} Bb4+ {[%emt 0:00:34]} 4. Nbd2 {[%emt 0:00:11]} d5 {[%emt 0:03:15]} 5. Qa4+
{[%emt 0:03:40]} Nc6 {[%emt 0:00:05]} 6. e3 {[%emt 0:01:46]} O-O {[%emt 0:00:
00]} 7. a3 {[%emt 0:00:09]} Bxd2+ {[%emt 0:09:36]} 8. Bxd2 {[%emt 0:00:09]} Ne4
{[%emt 0:00:05]} 9. Qc2 {[%emt 0:00:06]} (9. Bd3 {feels hotter.} e5 10. cxd5
Qxd5 11. Qc2) 9... Nxd2 {[%emt 0:04:41] E11: Bogo-Indian.} 10. Qxd2 {[%emt 0:
00:00]} Qf6 {[%emt 0:08:17]} 11. Qc3 {[%emt 0:06:07]} Ne7 {[%emt 0:07:15][%cal
Yc7c5] White is slightly better.} 12. Rc1 {[%emt 0:14:12]} c6 {[%emt 0:07:17]}
13. Bd3 {[%emt 0:13:07]} Ng6 {[%emt 0:06:20]} 14. h4 {[%emt 0:06:04][%cal
Yh2h4,Yh4h5,Yh5h6] [#]} Re8 $146 {[%emt 0:04:59]} ({Predecessor:} 14... Rd8 15.
h5 Nf8 16. h6 g6 17. e4 dxe4 18. Bxe4 Qe7 19. O-O f5 20. Bc2 Qf6 {1-0 (57)
Mekhitarian,K (2546)-Cordeiro,M (2223) Concordia 2018}) 15. h5 {[%emt 0:01:12]}
Nf8 {[%emt 0:00:30]} 16. Rh4 {[%emt 0:14:04][%cal Yh5h6]} Qe7 {[%emt 0:05:02]}
17. h6 {[%emt 0:02:32]} g6 {[%emt 0:00:27][%cal Yg7g6,Yg6g5,Yg5g4]} 18. e4 {
[%emt 0:00:56]} f5 {[%emt 0:06:51]} 19. e5 {[%emt 0:00:00]} g5 {[%emt 0:03:37]}
20. Rh5 {[%emt 0:00:55]} g4 {[%emt 0:00:15]} 21. Ng1 {[%emt 0:01:19]} (21. Ng5
$16) 21... Ng6 {[%emt 0:03:07]} 22. Ne2 {[%emt 0:00:00] Inhibits Nf4.} (22.
cxd5 $16 {d6 is the strong threat.} cxd5 23. Qd2) 22... dxc4 $11 {[%emt 0:00:
36]} 23. Bxc4 {[%emt 0:00:38]} Kh8 {[%emt 0:00:27]} 24. f3 {[%emt 0:12:08]}
gxf3 {[%emt 0:01:05]} 25. gxf3 {[%emt 0:00:06]} Bd7 {[%emt 0:03:26]} 26. Kf2 {
[%emt 0:02:10]} Rg8 {[%emt 0:01:32]} 27. Rg1 {[%emt 0:00:00]} Be8 {[%emt 0:10:
33][%cal Yg6e5]} 28. Rhg5 {[%emt 0:01:03][%cal Yc4e6] [#] Hoping for Bxe6!} Bf7
{[%emt 0:00:08]} 29. Qe3 {[%emt 0:02:38]} Rad8 {[%emt 0:00:25]} 30. b4 {
[%emt 0:02:00]} Qc7 {[%emt 0:08:03]} (30... a5 $11) 31. Nf4 {[%emt 0:02:34]}
Qd7 {[%emt 0:01:04]} (31... Qe7 $1 $11 {remains equal.}) 32. Ne2 {[%emt 0:02:
26] White is much more active.} Qc7 {[%emt 0:00:13]} 33. Qb3 {[%emt 0:00:49]}
Qe7 {[%emt 0:00:17]} 34. Kf1 {[%emt 0:01:27][%cal Yg5f5]} b5 {[%emt 0:01:00]}
35. Bd3 {[%emt 0:00:08]} Nh4 {[%emt 0:00:14][%csl Yf3,Yg5]} 36. R5g3 {[%emt 0:
01:43]} Rxg3 {[%emt 0:00:27]} 37. Rxg3 {[%emt 0:00:04]} Rg8 {[%emt 0:00:31]}
38. Rxg8+ {[%emt 0:00:58]} Kxg8 {[%emt 0:00:36]} 39. f4 {[%emt 0:00:41]
Against Qg5} Nf3 $2 {[%emt 0:00:54] [#]} (39... Ng6 $11 {and Black stays safe.}
) 40. Qc3 $1 $18 {[%emt 0:00:25]} Qh4 {[%emt 0:01:00] ( -> ...Nh2+)} 41. Qxc6 {
[%emt 0:04:48] Qa8+ would kill now.} Qe1+ $2 {[%emt 0:00:00]} (41... Nd2+ 42.
Kg2 Qxh6) 42. Kg2 {[%emt 0:00:16] Intending Qa8+ and mate. White is clearly
winning.} Nh4+ {[%emt 0:00:06]} 43. Kh3 {[%emt 0:01:28] White threatens Qc8+
and mate.} Ng6 {[%emt 0:00:05]} 44. Qc8+ {[%emt 0:04:28]} Nf8 {[%emt 0:00:02]
Strongly threatening ...Qh1+.} 45. Qc1 {[%emt 0:02:06]} Qxc1 {[%emt 0:02:01]}
46. Nxc1 {[%emt 0:00:02]} Be8 {[%emt 0:00:13]} 47. Kh4 {[%emt 0:02:34]} Kf7 {
[%emt 0:01:28]} 48. Kg5 {[%emt 0:00:28]} Bc6 {[%emt 0:00:00]} 49. Ne2 {[%emt 0:
00:31]} Nd7 {[%emt 0:01:29]} 50. Nc3 {[%emt 0:00:10]} Kg8 {[%emt 0:02:21]
Weighted Error Value: White=0.14 (very precise) /Black=0.30} 1-0